fUSD/lending_fUSD_20260409
["ID","MTS","AMOUNT","RATE_DAILY","PERIOD"]
[420101239,1775676665346,-151.0,0.0001491,2]
[420101240,1775676665356,-151.0,0.0001491,2]
[420101241,1775676665366,-151.0,0.0001491,2]
[420101242,1775676665376,-151.0,0.0001491,2]
[420101243,1775676665386,-151.0,0.0001491,2]
[420101244,1775676665396,-151.0,0.0001491,2]
[420101245,1775676665406,-253.082657,0.0001491,2]
[420101246,1775676665416,-151.0,0.0001491,2]
[420101247,1775676665426,-151.0,0.0001491,2]
[420101248,1775676665437,-152.727709,0.0001491,2]
[420101249,1775676665447,-151.0,0.0001491,2]
[420101250,1775676665457,-185.081385,0.0001491,2]
[420101251,1775676665467,-151.0,0.0001491,2]
[420101252,1775676665477,-185.081385,0.0001491,2]
[420101253,1775676665486,-320.89115,0.0001491,2]
[420101254,1775676665497,-248.573322,0.0001491,2]
[420101255,1775676665506,-151.0,0.0001491,2]
[420101256,1775676665516,-185.081385,0.0001491,2]
[420101257,1775676665526,-320.89115,0.0001491,2]
[420101258,1775676665535,-238.065878,0.0001491,2]
[420101259,1775676665545,-185.081385,0.0001491,2]
[420101260,1775676665554,-320.89115,0.0001491,2]
[420101261,1775676665564,-151.0,0.0001491,2]
[420101262,1775676665574,-320.89115,0.0001491,2]
[420101263,1775676665584,-374.008372,0.0001491,2]
[420101264,1775676665594,-374.008372,0.0001491,2]
[420101265,1775676665603,-684.739571,0.0001491,2]
[420101266,1775676665613,-201.410641,0.0001491,2]
[420101267,1775676665624,-374.008372,0.0001491,2]
[420101268,1775676665642,-684.739571,0.0001491,2]
[420101269,1775676665657,-201.410641,0.0001491,2]
[420101270,1775676665674,-374.008372,0.0001491,2]
[420101271,1775676665687,-684.739571,0.0001491,2]
[420101272,1775676665699,-201.410641,0.0001491,2]
[420101273,1775676665714,-153.753597,0.0001491,2]
[420101274,1775676665728,-684.739571,0.0001491,2]
[420101275,1775676665742,-201.410641,0.0001491,2]
[420101276,1775676665756,-153.753597,0.0001491,2]
[420101277,1775676665769,-151.0,0.0001491,2]
[420101278,1775676665782,-153.753597,0.0001491,2]
[420101279,1775676665797,-156.751319,0.0001491,2]
[420101280,1775676665811,-153.753597,0.0001491,2]
[420101281,1775676665825,-155.998488,0.0001491,2]
[420101282,1775676665837,-155.998488,0.0001491,2]
[420101283,1775676665850,-155.998488,0.0001491,2]
[420101284,1775676665863,-155.998488,0.0001491,2]
[420101285,1775676665875,-698.620311,0.0001491,2]
[420101286,1775676665887,-745.674365,0.0001491,2]
[420101287,1775676665900,-698.620311,0.0001491,2]
[420101288,1775676665914,-745.674365,0.0001491,2]
[420101289,1775676665928,-698.620311,0.0001491,2]
[420101290,1775676665942,-745.674365,0.0001491,2]
[420101291,1775676665955,-698.620311,0.0001491,2]
[420101292,1775676665969,-745.674365,0.0001491,2]
[420101293,1775676665983,-151.0,0.0001491,2]
[420101294,1775676665997,-151.0,0.0001491,2]
[420101295,1775676666009,-759.409535,0.0001491,2]
[420101296,1775676666019,-759.409535,0.0001491,2]
[420101297,1775676666030,-151.0,0.0001491,2]
[420101298,1775676666041,-151.0,0.0001491,2]
[420101299,1775676666057,-533.119579,0.0001491,2]
[420101300,1775676666069,-216.387975,0.0001491,2]
[420101301,1775676666082,-759.409535,0.0001491,2]
[420101302,1775676666096,-151.0,0.0001491,2]
[420101303,1775676666110,-533.119579,0.0001491,2]
[420101304,1775676666122,-216.387975,0.0001491,2]
[420101305,1775676666137,-256.376188,0.0001491,2]
[420101306,1775676666150,-151.0,0.0001491,2]
[420101307,1775676666161,-759.409535,0.0001491,2]
[420101308,1775676666172,-533.119579,0.0001491,2]
[420101309,1775676666186,-216.387975,0.0001491,2]
[420101310,1775676666198,-151.0,0.0001491,2]
[420101311,1775676666210,-256.376188,0.0001491,2]
[420101312,1775676666221,-151.0,0.0001491,2]
[420101313,1775676666232,-533.119579,0.0001491,2]
[420101314,1775676666245,-216.387975,0.0001491,2]
[420101315,1775676666257,-250.030574,0.0001491,2]
[420101316,1775676666269,-256.376188,0.0001491,2]
[420101317,1775676666280,-151.0,0.0001491,2]
[420101318,1775676666292,-256.376188,0.0001491,2]
[420101319,1775676666304,-151.0,0.0001491,2]
[420101320,1775676666317,-151.0,0.0001491,2]
[420101321,1775676666329,-151.0,0.0001491,2]
[420101322,1775676666341,-151.0,0.0001491,2]
[420101323,1775676666352,-151.0,0.0001491,2]
[420101324,1775676666365,-151.0,0.0001491,2]
[420101325,1775676666378,-151.0,0.0001491,2]
[420101326,1775676666390,-151.0,0.0001491,2]
[420101327,1775676666403,-245.217068,0.0001491,2]
[420101328,1775676666415,-245.217068,0.0001491,2]
[420101329,1775676666429,-151.0,0.0001491,2]
[420101330,1775676666442,-245.217068,0.0001491,2]
[420101331,1775676666455,-245.217068,0.0001491,2]
[420101332,1775676666467,-151.0,0.0001491,2]
[420101333,1775676666485,-265.630776,0.0001491,2]
[420101334,1775676666498,-481.943384,0.0001491,2]
[420101335,1775676666510,-481.943384,0.0001491,2]
[420101336,1775676666522,-481.943384,0.0001491,2]
[420101337,1775676666534,-250.161513,0.0001491,2]
[420101338,1775676666546,-151.0,0.0001491,2]
[420101339,1775676666557,-151.0,0.0001491,2]
[420101340,1775676666569,-525.417452,0.0001491,2]
[420101341,1775676666581,-481.943384,0.0001491,2]
[420101342,1775676666595,-151.0,0.0001491,2]
[420101343,1775676666608,-525.417452,0.0001491,2]
[420101344,1775676666621,-240.549428,0.0001491,2]
[420101345,1775676666634,-151.0,0.0001491,2]
[420101346,1775676666646,-466.087884,0.0001491,2]
[420101347,1775676666658,-306.368959,0.0001491,2]
[420101348,1775676666670,-525.417452,0.0001491,2]
[420101349,1775676666683,-306.368959,0.0001491,2]
[420101350,1775676666696,-636.376379,0.0001491,2]
[420101351,1775676666708,-525.417452,0.0001491,2]
[420101352,1775676666720,-306.368959,0.0001491,2]
[420101353,1775676666733,-636.376379,0.0001491,2]
[420101354,1775676666745,-466.087884,0.0001491,2]
[420101355,1775676666758,-636.376379,0.0001491,2]
[420101356,1775676666770,-306.368959,0.0001491,2]
[420101357,1775676666783,-466.087884,0.0001491,2]
[420101358,1775676666795,-151.0,0.0001491,2]
[420101359,1775676666807,-636.376379,0.0001491,2]
[420101360,1775676666823,-153.741565,0.0001491,2]
[420101361,1775676666835,-466.087884,0.0001491,2]
[420101362,1775676666847,-820.296437,0.0001491,2]
[420101363,1775676666859,-820.296437,0.0001491,2]
[420101364,1775676666871,-820.296437,0.0001491,2]
[420101365,1775676666883,-820.296437,0.0001491,2]
[420101366,1775676666895,-151.0,0.0001491,2]
[420101367,1775676666908,-151.0,0.0001491,2]
[420101368,1775676666921,-151.0,0.0001491,2]
[420101369,1775676666933,-497.933715,0.0001491,2]
[420101370,1775676666945,-497.933715,0.0001491,2]
[420101371,1775676666958,-252.458138,0.0001491,2]
[420101372,1775676666971,-497.933715,0.0001491,2]
[420101373,1775676666983,-252.458138,0.0001491,2]
[420101374,1775676666996,-462.719602,0.0001491,2]
[420101375,1775676667008,-497.933715,0.0001491,2]
[420101376,1775676667021,-462.719602,0.0001491,2]
[420101377,1775676667033,-252.458138,0.0001491,2]
[420101378,1775676667045,-392.167974,0.0001491,2]
[420101379,1775676667057,-252.458138,0.0001491,2]
[420101380,1775676667069,-462.719602,0.0001491,2]
[420101381,1775676667082,-392.167974,0.0001491,2]
[420101382,1775676667094,-4521.204252,0.0001491,2]
[420101383,1775676667106,-280.569445,0.0001491,2]
[420101384,1775676667118,-462.719602,0.0001491,2]
[420101385,1775676667129,-280.973665,0.0001491,2]
[420101386,1775676667141,-392.167974,0.0001491,2]
[420101387,1775676667152,-810.871787,0.0001491,2]
[420101388,1775676667165,-4521.204252,0.0001491,2]
[420101389,1775676667189,-280.569445,0.0001491,2]
[420101390,1775676667200,-392.167974,0.0001491,2]
[420101391,1775676667211,-810.871787,0.0001491,2]
[420101392,1775676667223,-4521.204252,0.0001491,2]
[420101393,1775676667233,-280.569445,0.0001491,2]
[420101394,1775676667247,-810.871787,0.0001491,2]
[420101395,1775676667259,-4521.204252,0.0001491,2]
[420101396,1775676667271,-280.973665,0.0001491,2]
[420101397,1775676667283,-280.569445,0.0001491,2]
[420101398,1775676667296,-810.871787,0.0001491,2]
[420101399,1775676667308,-280.973665,0.0001491,2]
[420101400,1775676667320,-1033.902763,0.0001491,2]
[420101401,1775676667333,-663.858593,0.0001491,2]
[420101402,1775676667346,-280.973665,0.0001491,2]
[420101403,1775676667358,-1033.902763,0.0001491,2]
[420101404,1775676667370,-663.858593,0.0001491,2]
[420101405,1775676667382,-1033.902763,0.0001491,2]
[420101406,1775676667394,-663.858593,0.0001491,2]
[420101407,1775676667407,-323.326839,0.0001491,2]
[420101408,1775676667419,-1033.902763,0.0001491,2]
[420101409,1775676667431,-663.858593,0.0001491,2]
[420101410,1775676667444,-323.326839,0.0001491,2]
[420101411,1775676667457,-151.0,0.0001491,2]
[420101412,1775676667469,-323.326839,0.0001491,2]
[420101413,1775676667481,-151.0,0.0001491,2]
[420101414,1775676667496,-151.0,0.0001491,2]
[420101415,1775676667508,-323.326839,0.0001491,2]
[420101416,1775676667520,-528.134364,0.0001491,2]
[420101417,1775676667531,-528.134364,0.0001491,2]
[420101418,1775676667544,-528.134364,0.0001491,2]
[420101419,1775676667557,-274.51099,0.0001491,2]
[420101420,1775676667569,-528.134364,0.0001491,2]
[420101421,1775676667582,-274.51099,0.0001491,2]
[420101422,1775676667595,-497.50981,0.0001491,2]
[420101423,1775676667608,-497.50981,0.0001491,2]
[420101424,1775676667621,-274.51099,0.0001491,2]
[420101425,1775676667633,-497.50981,0.0001491,2]
[420101426,1775676667646,-274.51099,0.0001491,2]
[420101427,1775676667657,-813.297609,0.0001491,2]
[420101428,1775676667669,-628.899081,0.0001491,2]
[420101429,1775676667682,-813.297609,0.0001491,2]
[420101430,1775676667694,-628.899081,0.0001491,2]
[420101431,1775676667706,-813.297609,0.0001491,2]
[420101432,1775676667719,-628.899081,0.0001491,2]
[420101433,1775676667731,-151.0,0.0001491,2]
[420101434,1775676667743,-376.806069,0.0001491,2]
[420101435,1775676667755,-497.50981,0.0001491,2]
[420101436,1775676667767,-813.297609,0.0001491,2]
[420101437,1775676667779,-628.899081,0.0001491,2]
[420101438,1775676667791,-376.806069,0.0001491,2]
[420101439,1775676667803,-376.806069,0.0001491,2]
[420101440,1775676667815,-151.0,0.0001491,2]
[420101441,1775676667826,-376.806069,0.0001491,2]
[420101442,1775676667838,-522.450118,0.0001491,2]
[420101443,1775676667850,-151.0,0.0001491,2]
[420101444,1775676667862,-522.450118,0.0001491,2]
[420101445,1775676667874,-151.0,0.0001491,2]
[420101446,1775676667885,-522.450118,0.0001491,2]
[420101447,1775676667896,-522.450118,0.0001491,2]
[420101448,1775676667908,-499.519837,0.0001491,2]
[420101449,1775676667920,-151.0,0.0001491,2]
[420101450,1775676667932,-499.519837,0.0001491,2]
[420101451,1775676667944,-499.519837,0.0001491,2]
[420101452,1775676667955,-499.519837,0.0001491,2]
[420101453,1775676667967,-151.0,0.0001491,2]
[420101454,1775676667979,-151.0,0.0001491,2]
[420101455,1775676667991,-151.0,0.0001491,2]
[420101456,1775676668003,-151.0,0.0001491,2]
[420101457,1775676668015,-1352.133494,0.0001491,2]
[420101458,1775676668026,-151.0,0.0001491,2]
[420101459,1775676668037,-1352.133494,0.0001491,2]
[420101460,1775676668048,-151.0,0.0001491,2]
[420101461,1775676668060,-1352.133494,0.0001491,2]
[420101462,1775676668072,-1352.133494,0.0001491,2]
[420101463,1775676668084,-151.0,0.0001491,2]
[420101464,1775676668096,-151.0,0.0001491,2]
[420101465,1775676668107,-151.0,0.0001491,2]
[420101466,1775676668119,-1816.0,0.00014917,2]
[420101467,1775676668131,-2000.0,0.00014919,2]
[420101468,1775676668144,-2000.0,0.00014919,2]
[420101469,1775676668156,-2000.0,0.00014919,2]
[420101470,1775676668168,-2000.0,0.00014919,2]
[420101471,1775676668179,-2000.0,0.00014919,2]
[420101472,1775676668191,-2000.0,0.00014919,2]
[420101473,1775676668204,-2000.0,0.00014919,2]
[420101474,1775676669371,-2000.0,0.00014919,2]
[420101475,1775676669410,-2000.0,0.00014919,2]
[420101476,1775676669440,-2098.0,0.00014919,2]
[420101477,1775676669460,-524.53,0.00014932,2]
[420101478,1775676669470,-883.72,0.00014932,2]
[420101479,1775676669480,-200.0,0.00014932,2]
[420101480,1775676669491,-368.64603733,0.00014952,2]
[420101481,1775676669501,-298.90722394,0.00014952,2]
[420101482,1775676669510,-1000.0,0.00014953,2]
[420101483,1775676669519,-1816.0,0.00014958,2]
[420101484,1775676669529,-1107.4931525,0.00014989,2]
[420101485,1775676669539,-1008.83569459,0.00014989,2]
[420101486,1775676669550,-1045.99132723,0.00014989,2]
[420101487,1775676669560,-1148.98492295,0.00014989,2]
[420101488,1775676669570,-1139.63340338,0.00014989,2]
[420101489,1775676669580,-1100.82127797,0.00014989,2]
[420101490,1775676669590,-1110.47279483,0.00014989,2]
[420101491,1775676669600,-1083.42353219,0.00014989,2]
[420101492,1775676669611,-1023.83321101,0.00014989,2]
[420101493,1775676669622,-1063.86461192,0.00014989,2]
[420101494,1775676669633,-1111.58113795,0.00014989,2]
[420101495,1775676669643,-1028.62875802,0.00014989,2]
[420101496,1775676669653,-1105.49016869,0.00014989,2]
[420101497,1775676669663,-1097.20937015,0.00014989,2]
[420101498,1775676669673,-1138.05806512,0.00014989,2]
[420101499,1775676669683,-1034.63667841,0.00014989,2]
[420101500,1775676669693,-1000.33247739,0.00014989,2]
[420101501,1775676669703,-1101.79231382,0.00014989,2]
[420101502,1775676669713,-1006.64422903,0.00014989,2]
[420101503,1775676669725,-1034.16768162,0.00014989,2]
[420101504,1775676669735,-1080.85810433,0.00014989,2]
[420101505,1775676669744,-1149.3920877,0.00014989,2]
[420101506,1775676669754,-1129.88205757,0.00014989,2]
[420101507,1775676669764,-1133.56996776,0.00014989,2]
[420101508,1775676669774,-1037.55075823,0.00014989,2]
[420101509,1775676669783,-1068.06887789,0.00014989,2]
[420101510,1775676669793,-1085.97598074,0.00014989,2]
[420101511,1775676669803,-1115.92418807,0.00014989,2]
[420101512,1775676669813,-1104.75158438,0.00014989,2]
[420101513,1775676669822,-1051.09764411,0.00014989,2]
[420101514,1775676669831,-1114.4034006,0.00014989,2]
[420101515,1775676669841,-1579.7159766,0.00014989,2]
[420101516,1775676669851,-1005.98065818,0.00014999,2]
[420101517,1775676669861,-300.0,0.00015,2]
[420101518,1775676669870,-160.0,0.00015,2]
[420101519,1775676669879,-1300.0,0.00015,2]
[420101520,1775676669889,-1300.0,0.00015,2]
[420101521,1775676669898,-1300.0,0.00015,2]
[420101522,1775676669908,-1300.0,0.00015,2]
[420101523,1775676669918,-1300.0,0.00015,2]
[420101524,1775676669927,-1300.0,0.00015,2]
[420101525,1775676669936,-1300.0,0.00015,2]
[420101526,1775676669946,-1300.0,0.00015,2]
[420101527,1775676669956,-1300.0,0.00015,2]
[420101528,1775676669966,-1287.0,0.00015,2]
[420101529,1775676669976,-908.0,0.00015,2]
[420101530,1775676669985,-728.0,0.00015,2]
[420101531,1775676669995,-1000.0,0.00015014,2]
[420101532,1775676670005,-576.77374866,0.00015022,2]
[420101533,1775676670015,-540.97569897,0.00015024,2]
[420101534,1775676670024,-6976.45084756,0.00015024,2]
[420101535,1775676670034,-888.71981631,0.00015024,2]
[420101536,1775676670044,-225.663,0.00015025,2]
[420101537,1775676670054,-1573.0,0.0001504,2]
[420101538,1775676670064,-1573.0,0.0001504,2]
[420101539,1775676670074,-1573.0,0.0001504,2]
[420101540,1775676670083,-150.0,0.00015053,2]
[420101541,1775676670093,-1068.5,0.00015057,2]
[420101542,1775676670102,-4184.722,0.00015068,2]
[420101543,1775676670112,-2134.31,0.00015068,2]
[420101544,1775676670122,-340.3,0.00015068,2]
[420101545,1775676670132,-213.120018,0.00015068,2]
[420101546,1775676670142,-213.120018,0.00015068,2]
[420101547,1775676670153,-213.120018,0.00015068,2]
[420101548,1775676670163,-213.120018,0.00015068,2]
[420101549,1775676670173,-213.120018,0.00015068,2]
[420101550,1775676670182,-213.120018,0.00015068,2]
[420101551,1775676670192,-213.120018,0.00015068,2]
[420101552,1775676670202,-213.120018,0.00015068,2]
[420101553,1775676670212,-213.120018,0.00015068,2]
[420101554,1775676670221,-213.120018,0.00015068,2]
[420101555,1775676670231,-213.120018,0.00015068,2]
[420101556,1775676670241,-213.120018,0.00015068,2]
[420101557,1775676670251,-213.120018,0.00015068,2]
[420101558,1775676670260,-213.120018,0.00015068,2]
[420101559,1775676670269,-213.120018,0.00015068,2]
[420101560,1775676670278,-213.120018,0.00015068,2]
[420101561,1775676670288,-800.91792691,0.00015068,2]
[420101562,1775676670297,-1064.96,0.00015069,2]
[420101563,1775676670307,-1816.0,0.00015077,2]
[420101564,1775676670317,-350.0,0.00015077,2]
[420101565,1775676670326,-3058.0,0.000151,2]
[420101566,1775676670335,-1000.0,0.00015132,2]
[420101567,1775676670345,-1816.0,0.00015134,2]
[420101568,1775676670355,-350.0,0.00015135,3]
[420101569,1775676670365,-150.0,0.00015173,2]
[420101570,1775676670375,-350.0,0.00015175,2]
[420101571,1775676670385,-1900.0,0.00015178,2]
[420101572,1775676670395,-1311.204454,0.000152,2]
[420101573,1775676670405,-263.8584,0.000152,2]
[420101574,1775676670414,-5419.21,0.00015205,2]
[420101575,1775676670424,-1816.0,0.00015224,2]
[420101576,1775676670434,-501.0,0.00015224,3]
[420101577,1775676670444,-150.0,0.00015232,2]
[420101578,1775676670453,-1816.0,0.00015234,2]
[420101579,1775676670463,-163.8001,0.0001525,2]
[420101580,1775676670472,-163.8001,0.0001526,2]
[420101581,1775676670482,-1068.5,0.00015266,2]
[420101582,1775676670492,-1866.66,0.00015285,2]
[420101583,1775676670502,-7523.91385164,0.00015298,2]
[420101584,1775676670511,-350.0,0.0001533,2]
[420101585,1775676670521,-477.15533545,0.00015342,2]
[420101586,1775676670530,-2000.0,0.00015342,2]
[420101587,1775676670540,-2000.0,0.00015342,2]
[420101588,1775676670549,-2000.0,0.00015342,2]
[420101589,1775676670559,-197.87652131,0.00015342,2]
[420101590,1775676670569,-2000.0,0.00015342,2]
[420101591,1775676670578,-2000.0,0.00015342,2]
[420101592,1775676670588,-2000.0,0.00015342,2]
[420101593,1775676670597,-254.25810122,0.00015342,2]
[420101594,1775676670606,-1065.00654162,0.00015343,2]
[420101595,1775676670616,-1000.0,0.00015351,2]
[420101596,1775676670626,-1572.0,0.0001536,2]
[420101597,1775676670636,-162.0,0.0001536,2]
[420101598,1775676670647,-2000.0,0.00015363,2]
[420101599,1775676670656,-2000.0,0.00015363,2]
[420101600,1775676670668,-1000.0,0.00015388,2]
[420101601,1775676670679,-200.0,0.00015393,2]
[420101602,1775676670690,-2010.0,0.000154,2]
[420101603,1775676670699,-1573.0,0.0001542,2]
[420101604,1775676670710,-1816.0,0.00015432,2]
[420101605,1775676670720,-150.0,0.00015432,2]
[420101606,1775676670730,-1264.0,0.00015432,2]
[420101607,1775676670739,-1217.0,0.00015432,2]
[420101608,1775676670749,-926.0,0.00015432,2]
[420101609,1775676670759,-6022.0,0.00015432,2]
[420101610,1775676670768,-1347.0,0.00015432,2]
[420101611,1775676670779,-162.0,0.00015438,2]
[420101612,1775676670789,-1816.0,0.0001544,2]
[420101613,1775676670799,-3058.0,0.00015447,2]
[420101614,1775676670809,-1000.0,0.00015448,2]
[420101615,1775676670819,-364.53,0.00015471,2]
[420101616,1775676670830,-1068.5,0.00015474,2]
[420101617,1775676670840,-220.566361,0.0001548,2]
[420101618,1775676670850,-151.0,0.00015497,2]
[420101619,1775676670860,-28689.0,0.000155,2]
[420101620,1775676670871,-84895.28463345,0.000155,7]
[420101621,1775676670882,-497.50981,0.000155,2]
[420101622,1775676670892,-497.50981,0.000155,2]
[420101623,1775676670902,-497.50981,0.000155,2]
[420101624,1775676670912,-813.297609,0.000155,2]
[420101625,1775676670924,-628.899081,0.000155,2]
[420101626,1775676670934,-813.297609,0.000155,2]
[420101627,1775676670944,-628.899081,0.000155,2]
[420101628,1775676670953,-813.297609,0.000155,2]
[420101629,1775676670963,-628.899081,0.000155,2]
[420101630,1775676670973,-151.0,0.000155,2]
[420101631,1775676670983,-376.806069,0.000155,2]
[420101632,1775676670992,-497.50981,0.000155,2]
[420101633,1775676671002,-813.297609,0.000155,2]
[420101634,1775676671012,-628.899081,0.000155,2]
[420101635,1775676671022,-376.806069,0.000155,2]
[420101636,1775676671032,-376.806069,0.000155,2]
[420101637,1775676671042,-151.0,0.000155,2]
[420101638,1775676671052,-376.806069,0.000155,2]
[420101639,1775676671062,-151.0,0.000155,2]
[420101640,1775676671072,-265.466656,0.000155,2]
[420101641,1775676671082,-499.519837,0.000155,2]
[420101642,1775676671092,-499.519837,0.000155,2]
[420101643,1775676671102,-499.519837,0.000155,2]
[420101644,1775676671112,-499.519837,0.000155,2]
[420101645,1775676671122,-151.0,0.000155,2]
[420101646,1775676671131,-267.311968,0.000155,2]
[420101647,1775676671141,-151.0,0.000155,2]
[420101648,1775676671151,-151.0,0.000155,2]
[420101649,1775676671161,-151.0,0.000155,2]
[420101650,1775676671171,-1352.133494,0.000155,2]
[420101651,1775676671182,-151.0,0.000155,2]
[420101652,1775676671191,-1352.133494,0.000155,2]
[420101653,1775676671201,-151.0,0.000155,2]
[420101654,1775676671211,-1352.133494,0.000155,2]
[420101655,1775676671222,-1352.133494,0.000155,2]
[420101656,1775676671232,-151.0,0.000155,2]
[420101657,1775676671242,-151.0,0.000155,2]
[420101658,1775676671252,-151.0,0.000155,2]
[420101659,1775676671264,-1000.0,0.00015506,2]
[420101660,1775676671274,-4000.0,0.00015507,2]
[420101661,1775676671285,-1000.0,0.00015518,2]
[420101662,1775676671294,-150.0,0.00015534,2]
[420101663,1775676671305,-200.0,0.00015547,2]
[420101664,1775676671314,-1000.0,0.00015574,2]
[420101665,1775676671323,-1153.7222365,0.00015578,2]
[420101666,1775676671334,-1000.0,0.00015579,2]
[420101667,1775676671344,-1816.0,0.0001558,2]
[420101668,1775676671355,-10500.0,0.000156,5]
[420101669,1775676671364,-18461.29189227,0.0001561,2]
[420101670,1775676671375,-150.0,0.00015615,2]
[420101671,1775676671384,-350.0,0.0001562,2]
[420101672,1775676671395,-150.0,0.00015642,2]
[420101673,1775676671405,-350.0,0.00015654,4]
[420101674,1775676671415,-150.0,0.00015655,2]
[420101675,1775676671426,-150.0,0.00015655,2]
[420101676,1775676671436,-1000.0,0.00015663,2]
[420101677,1775676671446,-3727.97775672,0.0001568,2]
[420101678,1775676671456,-1573.0,0.0001568,2]
[420101679,1775676671466,-1068.5,0.00015683,2]
[420101680,1775676671475,-151.0,0.00015685,2]
[420101681,1775676671485,-150.0,0.00015688,2]
[420101682,1775676671495,-150.0,0.00015688,2]
[420101683,1775676671504,-150.0,0.00015688,2]
[420101684,1775676671513,-151.0,0.000157,2]
[420101685,1775676671524,-382.684518,0.000157,2]
[420101686,1775676671534,-382.684518,0.000157,2]
[420101687,1775676671543,-252.791544,0.000157,2]
[420101688,1775676671553,-382.684518,0.000157,2]
[420101689,1775676671563,-252.791544,0.000157,2]
[420101690,1775676671573,-151.0,0.000157,2]
[420101691,1775676671583,-382.684521,0.000157,2]
[420101692,1775676671594,-252.791544,0.000157,2]
[420101693,1775676671603,-892.21053,0.000157,2]
[420101694,1775676671613,-252.791553,0.000157,2]
[420101695,1775676671623,-892.21053,0.000157,2]
[420101696,1775676671633,-892.21053,0.000157,2]
[420101697,1775676671643,-892.210534,0.000157,2]
[420101698,1775676671653,-264.356208,0.000157,2]
[420101699,1775676671663,-264.356208,0.000157,2]
[420101700,1775676671674,-264.356208,0.000157,2]
[420101701,1775676671684,-264.356202,0.000157,2]
[420101702,1775676671696,-195.251014,0.000157,2]
[420101703,1775676671707,-195.251014,0.000157,2]
[420101704,1775676671717,-195.251014,0.000157,2]
[420101705,1775676671728,-195.251021,0.000157,2]
[420101706,1775676671738,-1104.329926,0.000157,2]
[420101707,1775676671748,-1104.329926,0.000157,2]
[420101708,1775676671758,-1104.329926,0.000157,2]
[420101709,1775676671883,-151.0,0.000157,2]
[420101710,1775676671893,-1104.329935,0.000157,2]
[420101711,1775676671903,-151.0,0.000157,2]
[420101712,1775676671912,-783.271789,0.000157,2]
[420101713,1775676671923,-317.449149,0.000157,2]
[420101714,1775676671933,-783.271789,0.000157,2]
[420101715,1775676671943,-317.449149,0.000157,2]
[420101716,1775676671953,-783.271789,0.000157,2]
[420101717,1775676671963,-317.449149,0.000157,2]
[420101718,1775676671972,-783.271795,0.000157,2]
[420101719,1775676671981,-317.449142,0.000157,2]
[420101720,1775676671992,-151.0,0.000157,2]
[420101721,1775676672001,-151.0,0.000157,2]
[420101722,1775676672011,-386.728794,0.000157,2]
[420101723,1775676672021,-151.0,0.000157,2]
[420101724,1775676672031,-386.728794,0.000157,2]
[420101725,1775676672041,-386.728794,0.000157,2]
[420101726,1775676672050,-386.728789,0.000157,2]
[420101727,1775676672060,-157.215334,0.000157,2]
[420101728,1775676672069,-157.215334,0.000157,2]
[420101729,1775676672078,-157.215334,0.000157,2]
[420101730,1775676672088,-157.215343,0.000157,2]
[420101731,1775676672097,-183.879532,0.000157,2]
[420101732,1775676672106,-183.879532,0.000157,2]
[420101733,1775676672115,-183.879532,0.000157,2]
[420101734,1775676672125,-183.879539,0.000157,2]
[420101735,1775676672135,-151.0,0.000157,2]
[420101736,1775676672144,-281.814743,0.000157,2]
[420101737,1775676672153,-281.814743,0.000157,2]
[420101738,1775676672163,-151.0,0.000157,2]